Cogmind - Beta 14 @@@ ROGUE MODE // 2024.11.26 @ 07:40:27 Player: Fangrelle Result: Destroyed by Autobeam Turret with Autobeam Performance ------------- Evolutions (0) 0 Regions Visited (3) 600 Robots Destroyed (29) 145 Value Destroyed (982) 982 Prototype IDs (12) 240 Alien Tech Used (0) 0 Bonus (21) 21 TOTAL SCORE: 1988 Bonus ------- Follower Combat Kills 21 Cogmind --------- Core Integrity 0/250 Matter 293/300 Energy 45/100 System Corruption 0% Temperature Cool (21) Movement Rolling (95) Location -10/Subcaves Parts ------- > --- POWER (1) -------- (None) > --- PROPULSION (2) --- Wheel Subdweller Monowheel > --- UTILITY (2) ------ Medium Storage Unit Makeshift Light Armor Plating > --- WEAPON (2) ------- Battle Rifle > --- INVENTORY (10) --- Flightbrick High-capacity Matter Pod (200) High-capacity Matter Pod (200) Experimental Sensor Array Mining Laser Multitool Multitool Peak State ------------ > --- POWER ------------ Subdweller Power Source > --- PROPULSION ------- Wheel > --- UTILITY ---------- Medium Storage Unit Experimental Sensor Array > --- WEAPON ----------- Riot Gun Battle Cannon > --- INVENTORY -------- Flightbrick High-capacity Matter Pod High-capacity Matter Pod EM Pulse Gun Subdweller Beam Cannon Mining Laser [Rating: 22] Favorites ----------- Power Subdweller Power Source Engine Subdweller Power Source Propulsion Light Treads Treads Light Treads Leg Aluminum Leg Wheel Subdweller Monowheel Utility Medium Storage Unit Device Experimental Sensor Array Storage Medium Storage Unit Protection Makeshift Light Armor Plating Weapon Battle Rifle Energy Gun Heavy Riot Gun Energy Cannon Subdweller Beam Cannon Ballistic Gun Battle Rifle Ballistic Cannon Battle Cannon Launcher Grenade Launcher Special Weapon Mining Laser Build | -11 -10 -10 -10 ------- Run | Yrd Mat Min Sub Slots Evolved . | . . . . Power . | . . . . Propulsion . | . . . . Utility . | . . . . Weapon . | . . . . Parts Attached 49 | . 3 3 43 Power 4 | . . 1 3 Engine 4 | . . 1 3 Core . | . . . . Reactor . | . . . . Propulsion 7 | . 2 . 5 Treads 2 | . 2 . . Leg . | . . . . Wheel 5 | . . . 5 Hover . | . . . . Flight . | . . . . Utility 9 | . 1 1 7 Device 4 | . . . 4 Storage 1 | . . 1 . Processor . | . . . . Hackware . | . . . . Protection 4 | . 1 . 3 Artifact . | . . . . Weapon 29 | . . 1 28 Energy Gun 7 | . . . 7 Energy Cannon 1 | . . . 1 Ballistic Gun 11 | . . . 11 Ballistic Cannon 2 | . . . 2 Launcher 2 | . . 1 1 Special Weapon 6 | . . . 6 Impact Weapon . | . . . . Slashing Weapon . | . . . . Piercing Weapon . | . . . . Special Melee Weapon . | . . . . Unidentified Prototypes 1 | . . . 1 Parts Lost 10 | . . . 10 Power 2 | . . . 2 Propulsion 3 | . . . 3 Utility 2 | . . . 2 Weapon 3 | . . . 3 Highest Loss Streak 4 | . . . 4 To Critical Strikes . | . . . . Average Slot Usage (%) 87 | . 91 100 85 Engine 11 | . 14 14 10 Treads 10 | . 28 28 7 Wheel 9 | . . . 11 Device 1 | . . . 1 Storage 14 | . 14 14 14 Protection 12 | . 5 14 12 Energy Gun 11 | . 14 14 11 Energy Cannon 2 | . . . 2 Ballistic Gun 7 | . 14 . 8 Ballistic Cannon 1 | . . . 1 Launcher 2 | . . 14 . Special Weapon 2 | . . . 3 Peak Build Rating 22 | . 7 8 22 Average Rating 15 | . 6 7 17 On Entrance 6 | 6 6 7 8 Naked Turns . | . . . . Heaviest Build 29 | 12 15 21 29 Greatest Support 40 | 20 40 40 40 Greatest Overweight (x) 9 | . . . 9 Average Overweight (x) 1 | . . . 2 Largest Inventory Capacity 10 | . 8 10 10 Average Capacity 9 | . 8 8 10 Most Carried 10 | . 7 10 10 Average Carried 9 | . 5 8 9 Final Capacity 10 | 8 8 10 10 Final Carried 10 | 6 7 9 10 Class Distribution -------------------- 73% | Mutant 24% | Derelict-Mutant Dominant Class ---------------- Mutant | -10/Materials Mutant | -10/Mines Mutant | -10/Subcaves Resources | -11 -10 -10 -10 ----------- Run | Yrd Mat Min Sub Matter Collected 1259 | 200 40 260 759 Remotely . | . . . . Salvage Created 1068 | . 100 27 941 Parts 57 | . 4 5 48 Haulers Intercepted . | . . . . Recyclers Shooed . | . . . . Parts Field Recycled . | . . . . Retrieved Matter . | . . . . Parts Self-Destructed 22 | . . . 22 Prevented 2 | . . . 2 Kills | -11 -10 -10 -10 ------- Run | Yrd Mat Min Sub Combat Hostiles Destroyed 29 | . 2 3 24 Guns 14 | . 2 1 11 Cannons 6 | . . . 6 AOE 6 | . . 2 4 Classes Destroyed 5 | . 1 1 3 Swarmer 6 | . . 3 3 Grunt 4 | . 2 . 2 Artisan 1 | . . . 1 Cobbler 1 | . . . 1 Subdweller 19 | . . . 19 Best Kill Streak 5 | . 2 3 5 Combat Bots Only 5 | . 2 3 5 Max Kills in Single Turn 3 | . 1 2 3 Gunslinging . | . . . . Exploded 3 | . . 2 3 Melee . | . . . . Uniques/NPCs Destroyed . | . . . . Combat | -11 -10 -10 -10 -------- Run | Yrd Mat Min Sub Hostile Shots Fired 187 | . 24 8 155 Missed 72 | . 8 2 62 Damage Taken 1900 | . 208 73 1619 Core 256 | . 11 . 245 Absorbed by Shields . | . . . . Ignored by Resistances 36 | . . . 36 Core Remaining (%) 100 | 100 . . . Volleys Fired 133 | . 10 6 117 Largest 2 | . 2 1 2 Hottest 125 | . 60 40 125 Shots Fired 219 | . 20 6 193 Gun 144 | . 20 5 119 Cannon 31 | . . . 31 Launcher 11 | . . 1 10 Special 33 | . . . 33 Kinetic 106 | . 10 . 96 Thermal 44 | . . . 44 Explosive 11 | . . 1 10 Electromagnetic 58 | . 10 5 43 Robot Hit Streak 11 | . 9 3 11 Robot Miss Streak 5 | . 3 1 5 Penetration Max . | . . . . Secondary Targets 1 | . . . 1 Max Gunslinging Chain 1 | . . . 1 Shots Hit Robots 128 | . 13 4 111 Core Hits 53 | . 5 3 45 Critical Kills 2 | . . . 2 Critical Parts Destroyed . | . . . . Critical Strikes 2 | . . . 2 Meltdown 2 | . . . 2 Melee Attacks . | . . . . Impact . | . . . . Slashing . | . . . . Piercing . | . . . . Sneak Attacks . | . . . . Combat Hostiles . | . . . . Follow-up Attacks . | . . . . Damage Inflicted 2419 | . 232 163 2024 Guns 1359 | . 193 35 1131 Cannons 431 | . . . 431 Explosions 629 | . 39 128 462 Melee . | . . . . Ramming . | . . . . Kinetic 955 | . 87 . 868 Thermal 283 | . 39 . 244 Explosive 512 | . . 128 384 Electromagnetic 669 | . 106 35 528 Impact . | . . . . Slashing . | . . . . Piercing . | . . . . Highest Corruption . | . . . . Average Corruption . | . . . . Corruption Purged . | . . . . Corruption Blocked . | . . . . Overload Shots . | . . . . Overflow Damage 9 | . 9 . . Projectiles . | . . . . Explosions 9 | . 9 . . Melee . | . . . . Knockbacks 2 | . . . 2 Impact . | . . . . Kinetic 2 | . . . 2 Secondary . | . . . . Self-Inflicted Damage 36 | . . 21 15 Shots 2 | . . 1 1 Rammed . | . . . . Targets Rammed . | . . . . Kicked . | . . . . Crushed . | . . . . Highest Temperature 171 | . 171 24 38 Average Temperature 46 | . 99 11 12 Received Heat Transfer 609 | . 117 . 492 Siege Activations . | . . . . Robots Corrupted 1 | . . . 1 Combat Hostiles 1 | . . . 1 Parts Fried 1 | . . . 1 Impact Corruptions . | . . . . Robots Melted 2 | . . . 2 Combat Hostiles 2 | . . . 2 Parts Melted 3 | . . . 3 Heat Transferred 372 | . 50 . 322 Parts Sabotaged . | . . . . Parts Stolen . | . . . . Parts Stripped . | . . . . Power Chain Reactions 2 | . 1 . 1 Alert | -11 -10 -10 -10 ------- Run | Yrd Mat Min Sub Peak Influence 114 | . 89 114 . Initial 34 | . . 34 . Average 53 | . 42 54 . Maximum Alert Level . | . . . . Low Security (%) 100 | . 100 100 . Level 1 . | . . . . Level 2 . | . . . . Level 3 . | . . . . Level 4 . | . . . . Level 5 . | . . . . High Security . | . . . . Max Security . | . . . . Squads Dispatched 1 | . 1 . . Investigation 1 | . 1 . . Extermination . | . . . . Reinforcement . | . . . . Assault . | . . . . Garrison . | . . . . Intercept . | . . . . Searches Triggered . | . . . . Construction Impeded . | . . . . Haulers Reinforced . | . . . . Active Scanning Responses . | . . . . Cargo Convoy Interrupts . | . . . . Stealth | -11 -10 -10 -10 --------- Run | Yrd Mat Min Sub Distress Signals . | . . . . Communications Jammed . | . . . . Distress Signals . | . . . . Times Spotted 45 | . 2 6 37 Peak Tracking Total 5 | . 2 3 5 Tactical Retreats 5 | . . . 5 Traps | -11 -10 -10 -10 ------- Run | Yrd Mat Min Sub Traps Triggered 1 | . . . 1 Indirectly . | . . . . Trap Hack Attempts . | . . . . Triggered . | . . . . Disarmed . | . . . . Reprogrammed . | . . . . Reused . | . . . . Traps Extracted . | . . . . Installed 2 | . . . 2 Triggered . | . . . . Most Traps Carried 1 | . . . 1 Machines | -11 -10 -10 -10 ---------- Run | Yrd Mat Min Sub Machines Disabled 3 | . . . 3 Max in Single Turn 1 | . . . 1 Machines Repaired . | . . . . Machines Dismantled . | . . . . Machines Sabotaged . | . . . . Overloaded Fab Kills . | . . . . Hacking | -11 -10 -10 -10 --------- Run | Yrd Mat Min Sub Machines Accessed 5 | . 2 . 3 Terminals 1 | . 1 . . Fabricators . | . . . . Repair Stations . | . . . . Recycling Units 1 | . 1 . . Scanalyzers . | . . . . Garrison Access . | . . . . Total Hacks 19 | . 6 . 13 Successful 16 | . 3 . 13 Failed 3 | . 3 . . Catastrophic . | . . . . Database Lockouts . | . . . . Manual 4 | . 4 . . Terminals 3 | . 3 . . Fabricators . | . . . . Repair Stations . | . . . . Recycling Units 3 | . 3 . . Scanalyzers . | . . . . Garrison Access . | . . . . Terminal Hacks 13 | . . . 13 Record 11 | . . . 11 Open Door 1 | . . . 1 Derelict Proto ID Bank 1 | . . . 1 Fabricator Hacks . | . . . . Repair Station Hacks . | . . . . Recycling Unit Hacks 1 | . 1 . . Retrieve Components 1 | . 1 . . Scanalyzer . | . . . . Garrison Access Hacks . | . . . . Unauthorized Hacks 2 | . 2 . . Terminals 1 | . 1 . . Botnet 1 | . 1 . . Fabricators . | . . . . Repair Stations . | . . . . Recycling Units 1 | . 1 . . Tunnel 1 | . 1 . . Scanalyzers . | . . . . Garrison Access . | . . . . Data Cores Recovered . | . . . . Used . | . . . . Hacking Detections 2 | . 2 . . Full Trace Events . | . . . . Feedback Events . | . . . . Feedback Blocked . | . . . . Robot Schematics Acquired . | . . . . Robots Built . | . . . . Authchips . | . . . . Time . | . . . . Total Robot Build Rating . | . . . . Part Schematics Acquired . | . . . . Parts Built . | . . . . Authchips . | . . . . Time . | . . . . Total Part Build Rating . | . . . . Parts Repaired . | . . . . Time . | . . . . Parts Recycled . | . . . . Recycled Matter . | . . . . Retrieved Matter . | . . . . Retrieved Components 1 | . 1 . . Parts Scanalyzed . | . . . . Part Schematics Acquired . | . . . . Parts Damaged . | . . . . Bothacking | -11 -10 -10 -10 ------------ Run | Yrd Mat Min Sub Used RIF Installer . | . . . . Robots Hacked . | . . . . Non-combat . | . . . . Combat . | . . . . Robot Hacks Applied . | . . . . Relay Couplers Released . | . . . . Fabnet Peak Effective % . | . . . . Robots Rewired . | . . . . Allies Hacked . | . . . . Hacks Repelled . | . . . . Allies | -11 -10 -10 -10 -------- Run | Yrd Mat Min Sub Total Allies 3 | . . 3 . Largest Group 3 | . . 3 2 Highest-Rated Group 40 | . . 40 32 Highest-Rated Ally 16 | . . 16 16 Total Orders 2 | . . 2 . STAY 1 | . . 1 . FOLLOW 1 | . . 1 . Ally Attacks 18 | . . 12 6 Total Damage 150 | . . 100 50 Kills 3 | . . 3 . Allies Corrupted . | . . . . Allies Melted . | . . . . Intel | -11 -10 -10 -10 ------- Run | Yrd Mat Min Sub Robot Analysis Total . | . . . . Derelict Logs Recovered 3 | . . 2 1 Drone Launches . | . . . . Drone Recoveries . | . . . . Exploration | -11 -10 -10 -10 ------------- Run | Yrd Mat Min Sub Turns Passed 8114 | . 155 1121 6838 Spaces Moved 4290 | 1 73 672 3544 Core 394 | . . . 394 Treads 1793 | . 73 672 1048 Legs 1 | 1 . . . Wheels 2102 | . . . 2102 Hover . | . . . . Flight . | . . . . Fastest Speed 95 | 120 160 160 95 Average Speed 171 | 120 160 160 174 Slowest Speed 500 | 120 160 160 500 Overloaded Moves . | . . . . Propulsion Burnouts . | . . . . Robots Hopped . | . . . . Cave-ins Triggered . | . . . . Exploration Rate (%) 53 | 2 20 99 94 Regions Visited 3 Branch Regions 2 Pre-discovered Areas 2 | . 1 1 . Known Exits Taken . | . . . . Unknown Exits Taken 3 | 1 1 1 . Scrap Searched 18 | . . 1 17 Spaces Dug . | . . . . Terrain Destroyed 47 | . 9 10 28 Melee . | . . . . Projectile 1 | . . . 1 AOE 46 | . 9 10 27 Terrain Rammed . | . . . . Walls Destroyed . | . . . . Machines Disabled . | . . . . Actions | -11 -10 -10 -10 --------- Run | Yrd Mat Min Sub Total 4755 | . 92 713 3950 Wait 224 | . 2 20 202 Move 4287 | . 72 671 3544 Hop . | . . . . Pick Up 25 | . 3 7 15 Fast Attach 15 | . 1 . 14 Attach 7 | . 2 . 5 Detach 2 | . . . 2 Swap 27 | . . 3 24 Drop 33 | . 2 6 25 Fire 133 | . 10 6 117 Melee . | . . . . Ram . | . . . . Kick . | . . . . Crush . | . . . . Escape Stasis . | . . . . Rewire . | . . . . Trap 2 | . . . 2 Miscellaneous . | . . . . Route ------- -11/Scrapyard -10/Materials -10/Mines (discovered 3 exits: [*Mat x2] / *Sub) -10/Subcaves (discovered 3 exits: [*Mat x2] / [*Rec]) History --------- Turn | Location | Event 1 | -11/Scrapyard | Discovered new exit (range 0) 1 | -11/Scrapyard | Entered Materials 86 | -10/Materials | Discovered new exit (range 12) 156 | -10/Materials | Entered Mines 203 | -10/Mines | Learned Materials stockpile data 310 | -10/Mines | Build established: Mutant 535 | -10/Mines | Found a damaged Exp. Sensor Array with a note attached 539 | -10/Mines | Found Prototype Device 607 | -10/Mines | Learned location of Mines (-8) 609 | -10/Mines | Discovered new exit (range 9) 623 | -10/Mines | Assisted by bots powering up and referring to "LRC-V3" 1028 | -10/Mines | Discovered new exit (range 3) 1226 | -10/Mines | Discovered new exit (range 5) 1277 | -10/Mines | Entered Subcaves 1277 | -10/Subcaves | Accompanied by 2 allies 1330 | -10/Subcaves | Discovered new exit (range 10) 1459 | -10/Subcaves | Visited 4L-MR0's lab 1480 | -10/Subcaves | Found Flightbrick 1618 | -10/Subcaves | A swath of the cavern ceiling suddenly collapsed 1858 | -10/Subcaves | Shifting Twisted Machinery released Mak. Thermal Plating 1874 | -10/Subcaves | Shifting Twisted Machinery released Piercing Trap 1874 | -10/Subcaves | Identified Exp. Sensor Array 1949 | -10/Subcaves | Disturbed a concealed Subdweller 1950 | -10/Subcaves | Disturbed a concealed Subdweller 1953 | -10/Subcaves | Disturbed a concealed Subdweller 1995 | -10/Subcaves | Lost 4 parts (1p1n1u1w) 2295 | -10/Subcaves | A swath of the cavern ceiling suddenly collapsed 2399 | -10/Subcaves | Discovered new exit (range 4) 4178 | -10/Subcaves | Core integrity fell below 50% 4318 | -10/Subcaves | Visited Clippyterm 4321 | -10/Subcaves | Learned Factory trap positions 4747 | -10/Subcaves | Shifting Twisted Machinery released Battle Rifle 4808 | -10/Subcaves | Shifting Twisted Machinery released Shrapnel Trap 5331 | -10/Subcaves | Disturbed a concealed Subdweller 5775 | -10/Subcaves | Build established: Derelict-Mutant 7723 | -10/Subcaves | Build established: Mutant 8088 | -10/Subcaves | Discovered new exit (range 15) 8100 | -10/Subcaves | Core integrity fell below 20% 8115 | -10/Subcaves | Destroyed by Autobeam Turret with Autobeam Last Messages --------------- 07440_ Riot Gun destroyed. 07441_ 9C-Y6W(R) destroyed. 07492_ Dropped Broken Sub. Monowheel. 07493_ Acquired Sub. Monowheel. 07586_ Acquired 8 matter. 07763_ Acquired 2 matter. 07822_ Acquired Sub. Laser. 07849_ Acquired 7 matter. 07977_ Dropped Sub. Laser. 07978_ Acquired Battle Rifle. 08084_ Acquired 11 matter. 08088_ EXIT=FOUND 08093_ Dropped Ion Engine. 08094_ Chain reaction triggered in Lgt. Ion Engine. 08094_ S-10 Pest destroyed. 08098_ Acquired 5 matter. 08099_ Lgt. Ion Engine fries itself beyond repair. 08104_ Lgt. Assault Rifle fries itself beyond repair. 08106_ Machine disabled. 08111_ Hvy. Riot Gun destroyed. Map ----- +----------------------------------------------------+ | ###?# #?????????????????????? | | # ### ### #### #?????????????????????? | | ## ## #### ##???####?????????????????????? | | ?## ## #### ###???????##??????????????????? | | ??# ## < #### ##?##### #??????????????????? | | ??# ### #### ### # ##?????????????????? | | ?## ### ### #?????????????????? | | ## % #?????????????????? | | ## % # ## #?????????????????? | | ## #### #### #?????????????????? | | ########## % ## #?????????????????? | | ## ## ## #?????????????????? | | ## ## ### #?????????????????? | | # ## ## #### ## ##?????????????????? | | ## #### ## #?######??????????????????? | | ?## ##??# ##?????????????????????????? | | ??## ##???# ####???##?????????????????????? | | ???# ###????# ##?#####<#####?????????????????? | | ???## #??????# % ###?" " """"#?????????????????? | | ????# ?????## #?" " "#?????????????????? | | #???# ???## #?? t t "#?????????????????? | | #???## ##??# % #?? #?????????????????? | | #?????##??# ## ##??? #?###?????????????? | | ##???????# ?## ###?? ??# #?????????????? | | #???????# ???# ##?# #??# ##????????????? | | ##??????###????## #?#@% #?# #????????????? | | #??????????????# ### ## #?????????????? | | #????????????### ## # #?????????????? | | #???########## % ##[ #?????????????? | | #???#"" "#"X### ##%* # #?????????????? | | #???#"" ## ##% # #?????????????? | | #???#"" "#" # ## % # #?????????????? | | #???#"" "#" # # =% ##?????????????? | | #???#"X "### # [% ###??????????????? | | ""#???#"""""#?## ## = ##????????????????? | | "#??#######??### ;## #?????????????????? | | "#?????????????## ### ##????????????????? | | "#??????????????## ##?# #????????????????? | | ""##???????????????# ##??# ##???????????????? | | ##?????????????????# ###?# #???????????????? | | ##?????????????????# #?# ##???????????????? | | #?????????????????# #?# ##????????????????? | | #????????????????# #### #?????????????????? | | #???????????????# ## ## #?????????????????? | | ####??????????????## #### #?????????????????? | | ##????????????????# #"#?## #?????????????????? | | ##???????????????## ##??# ###?????????????????? | | #???????????????#"#"#??# #???????????????????? | | ##??????????????### ##?## ######??????????????? | | #???????????????###"###### ##?????????????? | +----------------------------------------------------+ Best States ------------- Heat Dissipation 25 Coolant Potential 50 Energy Generation 15 Energy Capacity 250 Matter Stores 300 Matter Capacity 300 Sight Range 21 Robot Scan Range 20 Terrain Scan Density 10 Armor Coverage 150 Resistance: TH 10 Evasion (%) 41 Recoil Reduction 2 Item Schematics ----------------- None Robot Schematics ------------------ None Fabricated ------------ Nothing Alien Tech Used ----------------- None Achievements -------------- None Challenges ------------ None Game ------ Seed CloakingClaymoresPlating Manual? 0 Play Time 00:29:43 Cumulative 140.2 hours Start 2024.11.25 @ 12:22:57 End 2024.11.26 @ 07:40:27 Sessions 9 Manual Loads 0 Difficulty Rogue Special Mode None Game No. 270 Rogue 270 Adventurer 0 Explorer 0 Win Type - Total 0 Types 0/0/0/0/0/0/0/0/0 Lore% 43 Gallery% 41 Achievement% 36 Wizard Run 0 Options --------- Layout 0 ASCII 0 Keyboard 0 Movement Mouse Keybinds 0 Fullscreen 1 Font 24/Smallcaps Map View 91x25 Zoom Use 80% Tactical HUD 1 Map Filters NONE Filters NONE Steam 1 RUN: 20df9203-dd40-4875-8666-a40408896412